Cogmind - Beta 9.4 @@@ ROGUE MODE // 2020.03.28 @ 19:27:00 Player: Pimski Result: Destroyed by S-27 Virus with Autogun Performance ------------- Evolutions (3) 1500 Regions Visited (14) 2800 Robots Destroyed (157) 785 Value Destroyed (3792) 3792 Prototype IDs (45) 900 Alien Tech Used (0) 0 Bonus (1729) 1729 TOTAL SCORE: 11506 Bonus ------- High Alert Combat Kills 145 Follower Combat Kills 33 Aligned with FarCom 300 Met Imprinter 300 Destroyed Z-Imprinter 1000 Friendly Fire -49 Cogmind --------- Core Integrity 0/700 Matter 285/300 Energy 81/100 System Corruption 0% Temperature Cool (18) Movement Flying (23) Location -6/Proximity Caves Parts ------- > --- POWER (1) -------- Zionite Light DM Reactor > --- PROPULSION (4) --- Improved Flight Unit Improved Flight Unit Improved VTOL Module Cooled VTOL Module > --- UTILITY (6) ------ Experimental Heat Sink Medium Storage Unit Experimental Target Analyzer Zionite Weapon Casing Hacking Suite > --- WEAPON (2) ------- 1C-UTU's Sword "Lootmaker" > --- INVENTORY (8) ---- Zionite Light DM Reactor Zionite Metafield Generator Experimental Melee Analysis Suite Faulty Experimental Core Analyzer Femtoactuators Makeshift Hacking Suite Makeshift Hacking Suite Experimental System Shield Peak State ------------ > --- POWER ------------ Zionite Light DM Reactor > --- PROPULSION ------- Improved Flight Unit Improved Flight Unit Improved Flight Unit Improved VTOL Module > --- UTILITY ---------- Experimental Heat Sink Experimental Target Analyzer Advanced Armor Integrity Analyzer Femtoactuators Hacking Suite Makeshift System Shield > --- WEAPON ----------- 1C-UTU's Sword "Lootmaker" > --- INVENTORY -------- Cooled VTOL Module Guided Plasma Cannon [Rating: 71] Favorites ----------- Power Light Nuclear Core Engine Deuterium Engine Power Core Light Nuclear Core Reactor Zionite Light DM Reactor Propulsion Light Treads Treads Light Treads Leg Aluminum Leg Wheel Wheel Flight Unit Improved Flight Unit Utility Large Storage Unit Device Femtoactuators Storage Large Storage Unit Processor Experimental Target Analyzer Hackware Hacking Suite Protection Improved Light Armor Plating Weapon Autogun Energy Gun Small Laser Energy Cannon Guided Plasma Cannon Ballistic Gun Autogun Ballistic Cannon Battle Cannon Launcher Mini Grenade Launcher Slashing Weapon 1C-UTU's Sword "Lootmaker" Build | -11 -10 -10 -9 -9 -9 -8 -8 -8 -7 -7 -7 -7 -7 -6 ------- Run | Scr Mat Min Mat Min Exi Min Mat Sto Fac Low Low Zio Dee Pro Slots Evolved 6 | . . . 2 . . . 2 . 2 . . . . . Power . | . . . . . . . . . . . . . . . Propulsion 2 | . . . . . . . . . 2 . . . . . Utility 4 | . . . 2 . . . 2 . . . . . . . Weapon . | . . . . . . . . . . . . . . . Parts Attached 143 | 1 6 12 19 . . 6 28 27 20 1 . 8 15 . Power 12 | . . 2 2 . . . 2 2 1 . . . 3 . Engine 5 | . . 1 2 . . . . 1 . . . . 1 . Core 5 | . . 1 . . . . 2 1 1 . . . . . Reactor 2 | . . . . . . . . . . . . . 2 . Propulsion 35 | . 2 2 4 . . . 7 10 8 . . . 2 . Treads 25 | . 2 1 4 . . . 6 9 3 . . . . . Leg . | . . . . . . . . . . . . . . . Wheel 1 | . . 1 . . . . . . . . . . . . Hover . | . . . . . . . . . . . . . . . Flight 9 | . . . . . . . 1 1 5 . . . 2 . Utility 51 | 1 2 2 6 . . 3 12 1 8 . . 7 9 . Device 4 | . . . . . . 1 . . . . . 1 2 . Storage 14 | 1 2 2 1 . . 1 3 . 2 . . . 2 . Processor 6 | . . . . . . . 1 . . . . 5 . . Hackware 6 | . . . . . . . . . 5 . . 1 . . Protection 21 | . . . 5 . . 1 8 1 1 . . . 5 . Artifact . | . . . . . . . . . . . . . . . Weapon 45 | . 2 6 7 . . 3 7 14 3 1 . 1 1 . Energy Gun 4 | . 1 2 . . . . . 1 . . . . . . Energy Cannon 1 | . . . . . . . . . 1 . . . . . Ballistic Gun 27 | . 1 2 6 . . 2 6 9 1 . . . . . Ballistic Cannon 2 | . . 2 . . . . . . . . . . . . Launcher 4 | . . . 1 . . . 1 2 . . . . . . Special Weapon . | . . . . . . . . . . . . . . . Impact Weapon . | . . . . . . . . . . . . . . . Slashing Weapon 7 | . . . . . . 1 . 2 1 1 . 1 1 . Piercing Weapon . | . . . . . . . . . . . . . . . Special Melee Weapon . | . . . . . . . . . . . . . . . Unidentified Prototypes 18 | . . . . . . 2 2 3 1 . . 4 6 . Parts Lost 25 | . 1 2 3 . . . 7 4 2 . . . 5 1 Power 6 | . . . . . . . 1 2 1 . . . 2 . Propulsion 3 | . . . . . . . 2 . . . . . 1 . Utility 9 | . . . 2 . . . 3 1 1 . . . 1 1 Weapon 7 | . 1 2 1 . . . 1 1 . . . . 1 . Highest Loss Streak 5 | . 1 2 1 . . . 3 2 2 . . . 5 1 Average Slot Usage (%) 98 | . 100 99 98 100 100 99 99 99 97 95 100 99 90 90 Engine 4 | . 14 8 6 11 11 11 . 2 . . . . . . Core 4 | . . 5 4 . . . 8 6 6 7 7 7 1 . Treads 19 | . 24 27 22 22 22 22 18 18 28 . . . . . Flight 3 | . . . . . . . . . 1 30 30 30 29 30 Storage 27 | . 28 28 24 33 33 31 29 36 29 7 7 7 5 7 Hackware 3 | . . . . . . . . . 1 38 38 22 15 13 Protection 12 | . . . 18 11 11 12 24 18 14 . . . 3 7 Energy Gun 2 | . 19 13 . . . . . . . . . . . . Ballistic Gun 14 | . 8 8 21 22 22 22 17 17 14 . . . . . Slashing Weapon 1 | . . . . . . . . . . 10 15 14 8 7 Naked Turns . | . . . . . . . . . . . . . . . Heaviest Build 88 | 16 40 41 73 73 73 73 81 81 88 17 17 18 21 21 Greatest Support 100 | 20 40 40 40 40 40 40 48 48 100 24 24 18 24 25 Greatest Overweight (x) 4 | . . 3 1 1 1 1 4 3 1 . . . . . Average Overweight (x) . | . . . . 1 1 1 1 1 . . . . . . Largest Inventory Capacity 32 | 8 16 16 22 22 22 22 28 28 32 8 8 8 8 8 Average Capacity 20 | 6 13 16 17 22 22 20 23 28 27 8 8 8 6 8 Most Carried 28 | 6 16 16 22 22 22 22 28 28 28 8 8 8 8 8 Average Carried 20 | 6 12 15 17 22 19 20 22 27 26 8 8 7 6 8 Final Capacity 28 | 8 16 16 22 22 22 22 28 28 8 8 8 8 8 8 Final Carried 28 | 6 16 16 22 22 22 22 26 28 8 8 8 8 8 8 Class Distribution -------------------- 63% | Hauler-Mutant 17% | Mutant 10% | Hacker-Sprinter 5% | Scavenger-Mutant Dominant Class ---------------- Mutant | -10/Materials Mutant | -10/Mines Scavenger-Mutant | -9/Materials Hauler-Mutant | -9/Mines Hauler-Mutant | -9/Exiles Hauler-Mutant | -8/Mines Hauler-Mutant | -8/Materials Hauler-Mutant | -8/Storage Hauler-Mutant | -7/Factory Hacker-Sprinter | -7/Lower Caves Hacker-Sprinter | -7/Lower Caves Hacker-Sprinter | -7/Zion Scavenger-Sprinter | -7/Deep Caves Hacker-Sprinter | -6/Proximity Caves Resources | -11 -10 -10 -9 -9 -9 -8 -8 -8 -7 -7 -7 -7 -7 -6 ----------- Run | Scr Mat Min Mat Min Exi Min Mat Sto Fac Low Low Zio Dee Pro Matter Collected 3839 | 210 84 133 367 . . 272 1272 949 230 122 . 78 122 . Remotely . | . . . . . . . . . . . . . . . Salvage Created 6068 | 68 270 218 764 27 41 249 1661 1806 357 255 . . 352 . Parts 350 | 3 13 16 46 2 3 19 91 107 19 3 . . 28 . Haulers Intercepted 12 | . . . . . . . 5 6 1 . . . . . Recyclers Shooed 14 | . 2 2 2 . . . 5 1 2 . . . . . Parts Field Recycled . | . . . . . . . . . . . . . . . Retrieved Matter . | . . . . . . . . . . . . . . . Parts Self-Destructed 1 | . . . . . . . . . . . 1 . . . Prevented . | . . . . . . . . . . . . . . . Kills | -11 -10 -10 -9 -9 -9 -8 -8 -8 -7 -7 -7 -7 -7 -6 ------- Run | Scr Mat Min Mat Min Exi Min Mat Sto Fac Low Low Zio Dee Pro Combat Hostiles Destroyed 102 | . 8 7 17 . . 9 28 27 3 . . . 3 . Melee 3 | . . . . . . . . . . . . . 3 . Guns 89 | . 8 7 13 . . 9 25 24 3 . . . . . AOE 10 | . . . 4 . . . 3 3 . . . . . . Classes Destroyed 14 | 1 3 . 2 1 1 . 2 2 1 . . . 1 . Worker 6 | . . . . 1 . . 2 2 1 . . . . . Tunneler 1 | . . . . . . . . . 1 . . . . . Hauler 12 | . . . . . . . 5 6 1 . . . . . Recycler 10 | 1 . 1 3 . . . 3 1 1 . . . . . Mechanic 1 | . . . . . . . . 1 . . . . . . Operator 10 | . 1 . . . . . 4 3 2 . . . . . Watcher 4 | . . . 1 . . . 1 2 . . . . . . Swarmer 36 | . 3 5 8 . . 6 10 4 . . . . . . Grunt 40 | . 5 2 5 . . 3 12 11 2 . . . . . Brawler 1 | . . . . . . . . 1 . . . . . . Sentry 20 | . . . 4 . . . 5 11 . . . . . . Hunter 2 | . . . . . . . 1 . 1 . . . . . Zionite 3 | . . . . . 3 . . . . . . . . . Z-Technician 5 | . . . . . . . . . . . . . 5 . Z-Light 2 | . . . . . . . . . . . . . 2 . Packrat 3 | . . . . . . . . . . 3 . . . . Best Kill Streak 9 | 1 2 3 9 1 2 6 6 5 3 . . . 5 . Combat Bots Only 8 | . 2 3 8 . . 6 5 4 1 . . . 2 . Max Kills in Single Turn 5 | 1 1 1 5 1 1 2 3 2 2 1 . . 1 . Gunslinging 1 | . . . 1 . . 1 . . . . . . . . Exploded 4 | . . . 4 . . . 3 2 . . . . . . Melee 1 | . . . . . . . . . . . . . 1 . Uniques/NPCs Destroyed 1 | . . . . . . . . . . . . . 1 . Z-Imprinter (-7/Deep Caves) Combat | -11 -10 -10 -9 -9 -9 -8 -8 -8 -7 -7 -7 -7 -7 -6 -------- Run | Scr Mat Min Mat Min Exi Min Mat Sto Fac Low Low Zio Dee Pro Damage Taken 6502 | . 248 434 787 . . 509 1603 1550 286 22 25 . 905 133 Core 1276 | . 33 70 115 . . 68 107 176 110 8 25 . 536 28 Absorbed by Shields . | . . . . . . . . . . . . . . . Core Remaining (%) 65 | 100 . 58 . . . 54 . 48 . . . . . . Volleys Fired 406 | 7 31 23 48 . 3 25 127 114 28 . . . . . Largest 2 | 2 2 2 2 . 2 2 2 2 2 . . . . . Hottest 120 | 90 90 79 46 . 46 46 46 50 120 . . . . . Shots Fired 800 | 14 62 44 91 . 6 50 252 226 55 . . . . . Gun 794 | 14 62 43 90 . 6 50 251 224 54 . . . . . Cannon 2 | . . 1 . . . . . . 1 . . . . . Launcher 4 | . . . 1 . . . 1 2 . . . . . . Special . | . . . . . . . . . . . . . . . Kinetic 724 | . 28 21 90 . 6 50 251 224 54 . . . . . Thermal 72 | 14 34 23 . . . . . . 1 . . . . . Explosive 4 | . . . 1 . . . 1 2 . . . . . . Electromagnetic . | . . . . . . . . . . . . . . . Robot Hit Streak 32 | 5 13 5 32 . 10 11 14 30 19 . . . . . Robot Miss Streak 5 | 2 2 3 2 . . 5 4 4 2 . . . . . Penetration Max . | . . . . . . . . . . . . . . . Secondary Targets 9 | . . . 1 . . 3 4 1 . . . . . . Max Gunslinging Chain 1 | . . . 1 . . 1 1 1 . . . . . . Shots Hit Robots 636 | 8 49 26 80 . 4 31 182 180 38 5 . . 33 . Core Hits 260 | 2 18 15 37 1 3 15 72 72 15 2 . . 8 . Critical Hits 8 | . . . 2 . . . . 1 . . . . 5 . Critical Kills . | . . . . . . . . . . . . . . . Critical Parts Destroyed 6 | . . . 2 . . . . 1 . . . . 3 . Melee Attacks 114 | . . . . . . . . 4 6 8 19 10 67 . Impact . | . . . . . . . . . . . . . . . Slashing 114 | . . . . . . . . 4 6 8 19 10 67 . Piercing . | . . . . . . . . . . . . . . . Sneak Attacks 7 | . . . . . . . . . . 1 . . 6 . Combat Hostiles . | . . . . . . . . . . . . . . . Follow-up Attacks . | . . . . . . . . . . . . . . . Damage Inflicted 11988 | 91 519 289 1147 18 65 481 2908 3287 681 296 . . 2206 . Guns 8589 | 91 519 238 959 . 65 481 2714 2857 665 . . . . . Cannons 22 | . . 22 . . . . . . . . . . . . Explosions 708 | . . . 160 . . . 152 396 . . . . . . Melee 2502 | . . . . . . . . . . 296 . . 2206 . Ramming 167 | . . 29 28 18 . . 42 34 16 . . . . . Kinetic 7976 | . 150 85 959 . 65 481 2714 2857 665 . . . . . Thermal 635 | 91 369 175 . . . . . . . . . . . . Explosive 708 | . . . 160 . . . 152 396 . . . . . . Electromagnetic . | . . . . . . . . . . . . . . . Impact . | . . . . . . . . . . . . . . . Slashing 2502 | . . . . . . . . . . 296 . . 2206 . Piercing . | . . . . . . . . . . . . . . . Highest Corruption . | . . . . . . . . . . . . . . . Average Corruption . | . . . . . . . . . . . . . . . Corruption Purged . | . . . . . . . . . . . . . . . Overload Shots . | . . . . . . . . . . . . . . . Overflow Damage 734 | . . . . . . . 16 17 . 148 . . 553 . Projectiles . | . . . . . . . . . . . . . . . Explosions 17 | . . . . . . . . 17 . . . . . . Melee 717 | . . . . . . . 16 . . 148 . . 553 . Knockbacks 2 | . . 1 . . . . . 1 . . . . . . Impact 1 | . . . . . . . . 1 . . . . . . Kinetic 1 | . . 1 . . . . . . . . . . . . Secondary . | . . . . . . . . . . . . . . . Self-Inflicted Damage . | . . . . . . . . . . . . . . . Shots . | . . . . . . . . . . . . . . . Rammed 22 | . . 6 5 2 . . 3 5 1 . . . . . Targets Rammed 23 | . . 6 5 2 . . 3 5 2 . . . . . Kicked . | . . . . . . . . . . . . . . . Crushed 1 | . . . . . . . . . 1 . . . . . Highest Temperature 247 | 210 223 102 96 . 24 202 247 48 74 . . . 8 . Average Temperature 47 | 106 85 41 26 . 12 71 59 12 10 . . . 8 . Received Heat Transfer 2079 | . 129 45 240 . . 99 630 603 90 . . . 243 . Siege Activations . | . . . . . . . . . . . . . . . Robots Corrupted . | . . . . . . . . . . . . . . . Combat Hostiles . | . . . . . . . . . . . . . . . Parts Fried 1 | . . . . . . . 1 . . . . . . . Impact Corruptions 3 | . . . . . . . 3 . . . . . . . Robots Melted . | . . . . . . . . . . . . . . . Combat Hostiles . | . . . . . . . . . . . . . . . Parts Melted . | . . . . . . . . . . . . . . . Heat Transferred 1720 | 236 1073 411 . . . . . . . . . . . . Parts Sabotaged . | . . . . . . . . . . . . . . . Parts Stolen . | . . . . . . . . . . . . . . . Parts Stripped . | . . . . . . . . . . . . . . . Power Chain Reactions . | . . . . . . . . . . . . . . . Missiles Intercepted . | . . . . . . . . . . . . . . . Alert | -11 -10 -10 -9 -9 -9 -8 -8 -8 -7 -7 -7 -7 -7 -6 ------- Run | Scr Mat Min Mat Min Exi Min Mat Sto Fac Low Low Zio Dee Pro Peak Influence 619 | 5 154 83 342 138 . 218 425 619 363 . . . . . Average Influence 201 | 2 48 47 191 136 . 126 196 354 238 . . . . . Maximum Alert Level 2 | . . . 1 . . 1 2 2 1 . . . . . Low Security (%) 52 | 100 100 100 49 100 . 80 60 3 27 . . . . . Level 1 39 | . . . 50 . . 19 36 64 72 . . . . . Level 2 8 | . . . . . . . 3 32 . . . . . . Level 3 . | . . . . . . . . . . . . . . . Level 4 . | . . . . . . . . . . . . . . . Level 5 . | . . . . . . . . . . . . . . . High Security . | . . . . . . . . . . . . . . . Max Security . | . . . . . . . . . . . . . . . Squads Dispatched 13 | . 1 . 1 . . . 3 3 5 . . . . . Investigation 1 | . 1 . . . . . . . . . . . . . Extermination . | . . . . . . . . . . . . . . . Reinforcement 11 | . . . 1 . . . 3 3 4 . . . . . Assault 1 | . . . . . . . . . 1 . . . . . Garrison . | . . . . . . . . . . . . . . . Intercept . | . . . . . . . . . . . . . . . Construction Impeded 1 | . . . . . . . . 1 . . . . . . Haulers Reinforced . | . . . . . . . . . . . . . . . Stealth | -11 -10 -10 -9 -9 -9 -8 -8 -8 -7 -7 -7 -7 -7 -6 --------- Run | Scr Mat Min Mat Min Exi Min Mat Sto Fac Low Low Zio Dee Pro Distress Signals 1 | . . . . . . . . 1 . . . . . . Communications Jammed . | . . . . . . . . . . . . . . . Distress Signals . | . . . . . . . . . . . . . . . Times Spotted 186 | . 12 24 24 . 1 12 44 36 19 4 3 . 4 3 Peak Tracking Total 12 | . 4 12 6 . 2 6 5 4 8 4 2 . 3 3 Tactical Retreats 10 | . 2 3 3 . . 1 1 . . . . . . . Traps | -11 -10 -10 -9 -9 -9 -8 -8 -8 -7 -7 -7 -7 -7 -6 ------- Run | Scr Mat Min Mat Min Exi Min Mat Sto Fac Low Low Zio Dee Pro Traps Triggered 2 | . . . . . . . 1 1 . . . . . . Indirectly . | . . . . . . . . . . . . . . . Trap Hack Attempts . | . . . . . . . . . . . . . . . Triggered . | . . . . . . . . . . . . . . . Disarmed . | . . . . . . . . . . . . . . . Reprogrammed . | . . . . . . . . . . . . . . . Reused . | . . . . . . . . . . . . . . . Traps Extracted . | . . . . . . . . . . . . . . . Installed . | . . . . . . . . . . . . . . . Triggered 5 | . . . . . . . . . . 1 . . . 4 Machines | -11 -10 -10 -9 -9 -9 -8 -8 -8 -7 -7 -7 -7 -7 -6 ---------- Run | Scr Mat Min Mat Min Exi Min Mat Sto Fac Low Low Zio Dee Pro Machines Disabled 6 | . . . . . . . 1 2 2 . . . 1 . Max in Single Turn 1 | . . . . . . . 1 1 1 . . . 1 . Garrison Access 3 | . . . . . . . 1 1 1 . . . . . Machines Sabotaged . | . . . . . . . . . . . . . . . Garrisons Compromised . | . . . . . . . . . . . . . . . Overloaded Fab Kills . | . . . . . . . . . . . . . . . Fab Network Shutdowns . | . . . . . . . . . . . . . . . Hacking | -11 -10 -10 -9 -9 -9 -8 -8 -8 -7 -7 -7 -7 -7 -6 --------- Run | Scr Mat Min Mat Min Exi Min Mat Sto Fac Low Low Zio Dee Pro Machines Accessed 34 | . 3 . 2 . 2 1 6 14 4 . 2 . . . Terminals 22 | . 3 . 1 . . 1 4 11 2 . . . . . Fabricators . | . . . . . . . . . . . . . . . Repair Stations 1 | . . . . . . . 1 . . . . . . . Recycling Units 3 | . . . 1 . . . . 2 . . . . . . Scanalyzers 1 | . . . . . . . . . 1 . . . . . Garrison Access 3 | . . . . . . . 1 1 1 . . . . . Total Hacks 77 | . 8 . 4 . 2 2 10 31 12 . 8 . . . Successful 47 | . 3 . 3 . 2 2 6 19 4 . 8 . . . Failed 29 | . 4 . 1 . . . 4 12 8 . . . . . Catastrophic 4 | . 1 . . . . . 1 2 . . . . . . Database Lockouts 1 | . 1 . . . . . . . . . . . . . Manual 42 | . 7 1 4 . 1 2 6 16 5 . . . . . Terminals 51 | . 8 . 3 . . 2 7 26 5 . . . . . Fabricators . | . . . . . . . . . . . . . . . Repair Stations 2 | . . . . . . . 2 . . . . . . . Recycling Units 5 | . . . 1 . . . . 4 . . . . . . Scanalyzers 5 | . . . . . . . . . 5 . . . . . Garrison Access 4 | . . . . . . . 1 1 2 . . . . . Terminal Hacks 29 | . 3 . 1 . 2 2 2 10 1 . 8 . . . Record 8 | . . . . . 1 . . . . . 7 . . . Part Schematic 1 | . . . . . . 1 . . . . . . . . Robot Analysis 2 | . 1 . . . . 1 . . . . . . . . Prototype ID Bank 2 | . 1 . . . . . . 1 . . . . . . Open Door 4 | . . . . . . . . 3 . . 1 . . . Branch Access Points 3 | . . . 1 . . . 1 . 1 . . . . . Terminal Index 1 | . . . . . . . . 1 . . . . . . Alert Level 1 | . . . . . . . . 1 . . . . . . Unreport Threat 2 | . . . . . . . . 2 . . . . . . Locate Traps 1 | . . . . . . . . 1 . . . . . . Recall Investigation 1 | . 1 . . . . . . . . . . . . . Hauler Manifests 2 | . . . . . . . 1 1 . . . . . . EX-Prototype ID Bank 1 | . . . . . 1 . . . . . . . . . Fabricator Hacks . | . . . . . . . . . . . . . . . Repair Station Hacks 2 | . . . . . . . 2 . . . . . . . Scan Component 1 | . . . . . . . 1 . . . . . . . Repair 1 | . . . . . . . 1 . . . . . . . Recycling Unit Hacks . | . . . . . . . . . . . . . . . Scanalyzer 2 | . . . . . . . . . 2 . . . . . Insert Component 2 | . . . . . . . . . 2 . . . . . Garrison Access Hacks 2 | . . . . . . . 1 1 . . . . . . Seal Access 2 | . . . . . . . 1 1 . . . . . . Unauthorized Hacks 34 | . . . 5 . . . 5 19 5 . . . . . Terminals 7 | . . . 1 . . . 1 4 1 . . . . . Assimilate 1 | . . . . . . . 1 . . . . . . . Botnet 5 | . . . 1 . . . . 3 1 . . . . . Operators 1 | . . . . . . . . 1 . . . . . . Fabricators . | . . . . . . . . . . . . . . . Repair Stations . | . . . . . . . . . . . . . . . Recycling Units 5 | . . . 1 . . . . 4 . . . . . . Monitor 1 | . . . . . . . . 1 . . . . . . Recyclers 1 | . . . . . . . . 1 . . . . . . Mask 3 | . . . 1 . . . . 2 . . . . . . Scanalyzers . | . . . . . . . . . . . . . . . Garrison Access . | . . . . . . . . . . . . . . . Data Cores Recovered 1 | . . . . . . . . 1 . . . . . . Used 1 | . . . . . . . . 1 . . . . . . Hacking Detections 24 | . 3 . 1 . . 1 4 11 4 . . . . . Full Trace Events 1 | . 1 . . . . . . . . . . . . . Feedback Events . | . . . . . . . . . . . . . . . Feedback Blocked . | . . . . . . . . . . . . . . . Robot Schematics Acquired . | . . . . . . . . . . . . . . . Robots Built . | . . . . . . . . . . . . . . . Matter . | . . . . . . . . . . . . . . . Time . | . . . . . . . . . . . . . . . Total Robot Build Rating . | . . . . . . . . . . . . . . . Part Schematics Acquired 1 | . . . . . . 1 . . . . . . . . Parts Built . | . . . . . . . . . . . . . . . Matter . | . . . . . . . . . . . . . . . Time . | . . . . . . . . . . . . . . . Total Part Build Rating . | . . . . . . . . . . . . . . . Parts Repaired 1 | . . . . . . . 1 . . . . . . . Time 32 | . . . . . . . 32 . . . . . . . Parts Recycled . | . . . . . . . . . . . . . . . Recycled Matter . | . . . . . . . . . . . . . . . Retrieved Matter . | . . . . . . . . . . . . . . . Retrieved Components . | . . . . . . . . . . . . . . . Parts Scanalyzed 1 | . . . . . . . . . 1 . . . . . Part Schematics Acquired . | . . . . . . . . . . . . . . . Parts Damaged . | . . . . . . . . . . . . . . . Bothacking | -11 -10 -10 -9 -9 -9 -8 -8 -8 -7 -7 -7 -7 -7 -6 ------------ Run | Scr Mat Min Mat Min Exi Min Mat Sto Fac Low Low Zio Dee Pro Used RIF Installer . | . . . . . . . . . . . . . . . Robots Hacked . | . . . . . . . . . . . . . . . Non-combat . | . . . . . . . . . . . . . . . Combat . | . . . . . . . . . . . . . . . Robot Hacks Applied . | . . . . . . . . . . . . . . . Relay Couplers Released 3 | . . . . . . . . . 3 . . . . . Machine Destruction 3 | . . . . . . . . . 3 . . . . . Robots Rewired . | . . . . . . . . . . . . . . . Allies Hacked . | . . . . . . . . . . . . . . . Hacks Repelled . | . . . . . . . . . . . . . . . Allies | -11 -10 -10 -9 -9 -9 -8 -8 -8 -7 -7 -7 -7 -7 -6 -------- Run | Scr Mat Min Mat Min Exi Min Mat Sto Fac Low Low Zio Dee Pro Total Allies 7 | . . 3 . 2 . . . . . . 2 . . . Largest Group 3 | . . 3 . 2 2 . . . . . 2 . . . Highest-Rated Group 56 | . . 40 . 45 45 . . . . . 56 . . . Highest-Rated Ally 31 | . . 16 . 31 31 . . . . . 31 . . . Total Orders . | . . . . . . . . . . . . . . . Ally Attacks 19 | . . 16 . . . . . . . . 3 . . . Total Damage 219 | . . 197 . . . . . . . . 22 . . . Kills 1 | . . 1 . . . . . . . . . . . . Allies Corrupted . | . . . . . . . . . . . . . . . Allies Melted . | . . . . . . . . . . . . . . . Intel | -11 -10 -10 -9 -9 -9 -8 -8 -8 -7 -7 -7 -7 -7 -6 ------- Run | Scr Mat Min Mat Min Exi Min Mat Sto Fac Low Low Zio Dee Pro Robot Analysis Total 2 | . 1 . . . . 1 . . . . . . . . Derelict Logs Recovered 4 | . . 1 . 1 . . . . . . 2 . . . Drone Launches . | . . . . . . . . . . . . . . . Drone Recoveries . | . . . . . . . . . . . . . . . Exploration | -11 -10 -10 -9 -9 -9 -8 -8 -8 -7 -7 -7 -7 -7 -6 ------------- Run | Scr Mat Min Mat Min Exi Min Mat Sto Fac Low Low Zio Dee Pro Turns Passed 8610 | 40 502 910 618 246 772 404 1544 1655 885 92 202 283 406 51 Spaces Moved 5921 | 15 249 477 222 135 401 161 556 684 550 262 456 832 722 199 Core . | . . . . . . . . . . . . . . . Treads 3281 | . 188 447 222 135 401 161 556 684 487 . . . . . Legs 76 | 15 61 . . . . . . . . . . . . . Wheels 30 | . . 30 . . . . . . . . . . . . Hover . | . . . . . . . . . . . . . . . Flight 2534 | . . . . . . . . . 63 262 456 832 722 199 Fastest Speed 23 | 120 120 110 160 180 180 180 180 165 26 26 26 29 26 23 Average Speed 109 | 120 150 161 179 180 180 180 190 168 134 28 28 29 27 25 Slowest Speed 240 | 120 160 180 180 180 180 180 240 205 152 29 29 29 35 26 Overloaded Moves 33 | . . . . . . . . . . . . . . 33 Propulsion Burnouts . | . . . . . . . . . . . . . . . Robots Hopped 3 | . . . . . . . . . . . . . 2 1 Cave-ins Triggered . | . . . . . . . . . . . . . . . Exploration Rate (%) 51 | 3 49 95 28 40 70 31 48 97 18 55 54 83 56 39 Regions Visited 14 Branch Regions 10 Pre-discovered Areas 3 | . . . . . 1 . . . . . 2 . . . Known Exits Taken 4 | . . . 1 . . . 1 1 1 . . . . . Unknown Exits Taken 10 | 1 1 1 . 1 1 1 . . . 1 1 1 1 . Scrap Searched 15 | . . 1 . . . . . . . 1 9 4 . . Spaces Dug 52 | . . . . . . . . 8 6 . 17 3 18 . Terrain Destroyed 76 | . . . 11 . . . 6 15 6 . 17 3 18 . Melee 44 | . . . . . . . . . 6 . 17 3 18 . Projectile . | . . . . . . . . . . . . . . . AOE 32 | . . . 11 . . . 6 15 . . . . . . Actions | -11 -10 -10 -9 -9 -9 -8 -8 -8 -7 -7 -7 -7 -7 -6 --------- Run | Scr Mat Min Mat Min Exi Min Mat Sto Fac Low Low Zio Dee Pro Total 7378 | 22 322 576 362 137 453 239 851 1011 664 270 508 867 898 198 Wait 493 | . 18 35 25 1 25 30 86 134 24 . 36 10 69 . Move 5901 | 14 248 476 221 134 400 160 555 683 549 261 455 831 717 197 Hop 3 | . . . . . . . . . . . . . 2 1 Pick Up 130 | . 14 11 24 . 12 7 26 16 7 . . 2 11 . Fast Attach 41 | 1 . . 2 . . 3 9 10 3 1 . 7 5 . Attach 45 | . 3 3 7 . . 1 9 3 13 . . 1 5 . Detach 6 | . . . . . . 1 . 2 . . . . 3 . Swap 57 | . 3 9 10 . . 2 10 14 4 . . . 5 . Drop 164 | . 5 13 20 . 13 10 26 26 28 . . 9 14 . Fire 406 | 7 31 23 48 . 3 25 127 114 28 . . . . . Melee 109 | . . . . . . . . 4 6 8 17 7 67 . Ram . | . . . . . . . . . . . . . . . Kick . | . . . . . . . . . . . . . . . Crush 23 | . . 6 5 2 . . 3 5 2 . . . . . Escape Stasis . | . . . . . . . . . . . . . . . Rewire . | . . . . . . . . . . . . . . . Trap . | . . . . . . . . . . . . . . . Miscellaneous . | . . . . . . . . . . . . . . . Route ------- -11/Scrapyard -10/Materials (discovered 2 exits: *Mat / *Min) -10/Mines (discovered 2 exits: *Mat x2) -9/Materials (discovered 2 exits: *Mat / *Min) -9/Mines (discovered 3 exits: *Mat x2 / *Exi) -9/Exiles (discovered 2 exits: *Min x2) -8/Mines -8/Materials (discovered 3 exits: *Fac x2 / *Sto) -8/Storage -7/Factory (discovered 2 exits: *Low x2) -7/Lower Caves -7/Lower Caves -7/Zion (discovered 2 exits: [*Dee] / [*Pro]) -7/Deep Caves -6/Proximity Caves History --------- Turn | Location | Event 22 | -11/Scrapyard | Discovered new exit (range 3) 41 | -11/Scrapyard | Entered Materials 287 | -10/Materials | Discovered new exit (range 13) 313 | -10/Materials | Build established: Mutant 379 | -10/Materials | Discovered new exit (range 16) 383 | -10/Materials | Central database locked down 543 | -10/Materials | Entered Mines 593 | -10/Mines | Assembled infested the area 734 | -10/Mines | A weapon hastily lodged in a ceiling crevice suddenly fell to the ground 832 | -10/Mines | Discovered new exit (range 13) 930 | -10/Mines | Assisted by bots powering up and referring to "LRC-V3" 1288 | -10/Mines | Learned Materials emergency access door positions 1423 | -10/Mines | Discovered new exit (range 11) 1453 | -10/Mines | Entered Materials 1453 | -9/Materials | Evolved 2 slots: Utility x2 1764 | -9/Materials | Identified exit to Mines 1768 | -9/Materials | Discovered new exit (range 3) 1781 | -9/Materials | Build established: Scavenger-Mutant 2011 | -9/Materials | Destroyed 8 combat bots 2071 | -9/Materials | Entered Mines 2098 | -9/Mines | Discovered new exit (range 5) 2134 | -9/Mines | Learned 4 Materials zone layouts 2187 | -9/Mines | Build established: Hauler-Mutant 2282 | -9/Mines | Discovered new exit (range 9) 2309 | -9/Mines | Deemed a non-threat by the Exiles lab entrance 2309 | -9/Mines | Discovered new exit (range 5) 2317 | -9/Mines | Entered Exiles 2317 | -9/Exiles | Accompanied by 2 allies 2347 | -9/Exiles | Led the pair of lost Derelicts to a safe place 2361 | -9/Exiles | Met 8R-AWN 2445 | -9/Exiles | Discovered new exit (range 14) 2513 | -9/Exiles | Met EX-HEX 2617 | -9/Exiles | Met EX-DEC 2647 | -9/Exiles | Learned location of Zion (-7) 2789 | -9/Exiles | Met EX-BIN 2814 | -9/Exiles | Aligned with FarCom system 2816 | -9/Exiles | Given EX-Vault access code 2857 | -9/Exiles | Opened EX-Vault 2873 | -9/Exiles | Found Gui. Plasma Cannon 2879 | -9/Exiles | Found Firepult 2917 | -9/Exiles | Warned to stay clear of 0b10 Research branches 2933 | -9/Exiles | Exiles lab attacked by MAIN.C 3036 | -9/Exiles | Discovered new exit (range 14) 3060 | -9/Exiles | Attacked by the Exiles 3089 | -9/Exiles | Stole two prototypes: Gui. Plasma Cannon, Firepult 3089 | -9/Exiles | Entered Mines 3155 | -8/Mines | 1C-UTU came to Exiles' defense 3192 | -8/Mines | Found Prototype Device 3192 | -8/Mines | Identified Femtoactuators 3197 | -8/Mines | Found Prototype Slashing Weapon 3203 | -8/Mines | Found Prototype Processor 3223 | -8/Mines | Identified 1C-UTU's Sword "Lootmaker" 3475 | -8/Mines | Discovered new exit (range 10) 3493 | -8/Mines | Entered Materials 3493 | -8/Materials | Evolved 2 slots: Utility x2 3775 | -8/Materials | Repaired Autogun 3930 | -8/Materials | Lost 3 parts (1p1n1u) 3994 | -8/Materials | Discovered new exit (range 16) 4119 | -8/Materials | Identified exit to Factory 4703 | -8/Materials | Discovered exit to Factory (range 10) 4719 | -8/Materials | Identified exit to Storage 5037 | -8/Materials | Entered Storage 6503 | -8/Storage | Discovered exit to Factory (range 12) 6563 | -8/Storage | Core integrity fell below 50% 6692 | -8/Storage | Entered Factory 6692 | -7/Factory | Evolved 2 slots: Propulsion x2 6886 | -7/Factory | Discovered new exit (range 16) 7043 | -7/Factory | Identified exit to Lower Caves 7548 | -7/Factory | Identified Exp. Melee Analysis Suite 7577 | -7/Factory | Entered Lower Caves 7639 | -7/Lower Caves | Spotted ZB-THO(f) 7640 | -7/Lower Caves | Encountered a Master Thief 7640 | -7/Lower Caves | Spotted BV-M47(f) 7641 | -7/Lower Caves | Encountered a Master Thief 7654 | -7/Lower Caves | Attracted the attention of an 0b10 checkpoint 7667 | -7/Lower Caves | Discovered new exit (range 8) 7669 | -7/Lower Caves | Entered another Lower Caves area 7674 | -7/Lower Caves | Learned Factory security intel 7751 | -7/Lower Caves | Learned location of Extension (-6) 7751 | -7/Lower Caves | Learned location of Armory (-3) 7751 | -7/Lower Caves | Learned Factory emergency access door positions 7751 | -7/Lower Caves | Learned Factory garrison access intel 7760 | -7/Lower Caves | A Commander dispatched an escort 7782 | -7/Lower Caves | Spotted YQ-28C(f) 7783 | -7/Lower Caves | Encountered a Master Thief 7818 | -7/Lower Caves | Learned 8 Factory zone layouts 7820 | -7/Lower Caves | Build established: Hacker-Sprinter 7840 | -7/Lower Caves | Discovered new exit (range 7) 7871 | -7/Lower Caves | Spotted XI-BAP(f) 7871 | -7/Lower Caves | Entered Zion 7889 | -7/Zion | Discovered new exit (range 9) 7913 | -7/Zion | Given A8's code to call for help 7922 | -7/Zion | Received a visual enhancement algorithm 7962 | -7/Zion | Found Prototype Processor 7962 | -7/Zion | Identified Spectral Analyzer 7964 | -7/Zion | Found Prototype Processor 7964 | -7/Zion | Identified Exp. Core Analyzer 7969 | -7/Zion | Found Prototype Processor 7969 | -7/Zion | Identified Exp. Target Analyzer 7973 | -7/Zion | Found Prototype Hackware 8124 | -7/Zion | Discovered new exit (range 3) 8126 | -7/Zion | Saw the warning signs outside the Deep Caves entrance 8137 | -7/Zion | Found Faulty Exp. Core Analyzer 8154 | -7/Zion | Entered Deep Caves 8234 | -7/Deep Caves | Attacked by Z-Imprinter 8256 | -7/Deep Caves | Core integrity fell below 50% 8274 | -7/Deep Caves | Core integrity fell below 20% 8289 | -7/Deep Caves | Destroyed Z-Imprinter 8299 | -7/Deep Caves | Found Prototype Protection 8302 | -7/Deep Caves | Identified Zio. Weapon Casing 8306 | -7/Deep Caves | Found Prototype Device 8306 | -7/Deep Caves | Identified Zio. Metafield Generator 8318 | -7/Deep Caves | Lost 5 parts (2p1n1u1w) 8318 | -7/Deep Caves | Found Surveybot 24 Chip 8441 | -7/Deep Caves | Z-Facility disabled 8475 | -7/Deep Caves | Found Zio. Weapon Casing 8558 | -7/Deep Caves | Discovered new exit (range 7) 8560 | -7/Deep Caves | Entered Proximity Caves 8611 | -6/Proximity Caves | Destroyed by S-27 Virus with Autogun Last Messages --------------- 08424_ Destroyed Datajack. 08424_ X5-BLQ(o) destroyed. 08428_ Sneak attack on 4E-869(o). 08428_ 4E-869(o) suffers critical hit. 08428_ Destroyed Hover Unit. 08430_ Sneak attack on 4E-869(o). 08430_ 4E-869(o) destroyed. 08433_ Dropped Zio. Biocell. 08433_ Acquired Mak. Hacking Suite. 08437_ Dropped Surveybot 24 Chip. 08438_ Acquired Mak. Hacking Suite. 08441_ Z-Facility disabled. 08475_ Dropped Zio. Weapon Casing. 08486_ Dropped Zio. Light DM Reactor. 08488_ Acquired Zio. Light DM Reactor. 08493_ Extracted 16 energy. 08558_ EXIT=FOUND LOCATION=UNKNOWN GOAL=ESCAPE 08606_ Mak. System Shield destroyed. Map ----- +----------------------------------------------------+ | ?????????????????????????????????????????????????? | | ?????????????????????????????????????????????????? | | ?????????????????????????????????????????????????? | | ?????????????????????????????????????????????????? | | ?????????????????????????????????????????????????? | | ?????????????????????????????????????????????????? | | ?????????????????????????????????????????????????? | | ?????????????????????????????????????????????????? | | ?????????????????????????????????????????????????? | | ?????????????????????????????????????????????????? | | ?????????????????????????????????????????????????? | | ?????????????????????????????????????????????????? | | ?????????????????????????????????????????????????? | | ?????????????????????????????????????????????????? | | ?????????????????????????????????????????????????? | | ?????????????????????????????????????????????????? | | ????????????????????????????????"????????????????? | | ???????????????????????????????""#???????????????? | | ###???????????????????????????"""#??#????????????? | | #??????########????????????? #? ##???????????? | | #???????# ##??????????? # ##??????????? | | #????????# ##????????? ?????????? | | #????????# ##??????? #???????????? | | ##???????# ######## #????????????? | | ##??????# s #?????????????? | | ######## ### @ #??????????????? | | ##?######### #???????????????? | | #??????????? #???????????????? | | ###### ###???????????? ##???????????????? | | ## ## #?????????????? ## ##????????????????? | | #???????????????#??#?????????????????? | | #????????????????????????????????????? | | # ##????????????????????????????????????? | | ### # #?????????????????????????????????????? | | #?## ## ##?????????????????????????????????????? | | ???# ### #??????????????????????????????????????? | | #??# #?# #??????????????????????????????????????? | | #??# ? #??????????????????????????????????????? | | #?# #??????????????????????????????????????? | | ## ####??????????????????????????????????????? | | ## ?????????????????????????????????????????? | | ##? ?????????????????????????????????????????? | | ##?? ##????????????????????????????????????????? | | ?? ##?????????????????????????????????????????? | | #???????????????????????????????????????????? | | ### #????????????????????????????????????????????? | | ????#????????????????????????????????????????????? | | ?????????????????????????????????????????????????? | | ????????????????????????????????????????????????? | | ???????????????????????????????????????????????? | +----------------------------------------------------+ Best States ------------- Heat Dissipation 60 Energy Generation 27 Energy Capacity 1100 Matter Stores 300 Matter Capacity 300 Sight Range 16 Terrain Scan Density 10 Armor Coverage 450 Resistance: KI 20 Weapon Shielding 100 Melee Speed Boost 50 Evasion (%) 65 Target Analysis 12 Armor Integrity Analysis 66 Recoil Reduction 4 Offensive Hacking 40 Defensive Hacking 11 Item Schematics ----------------- Hacking Suite | -8/Mines | Hacked Robot Schematics ------------------ None Fabricated ------------ Nothing Alien Tech Used ----------------- None Achievements -------------- None Challenges ------------ None Game ------ Seed BiomechanicalGreatScythe Manual? 0 Play Time 01:30:29 Cumulative 684.4 hours Start 2020.03.28 @ 15:07:31 End 2020.03.28 @ 19:27:00 Sessions 7 Manual Loads 0 Difficulty Rogue Special Mode None Game No. 430 Rogue 430 Adventurer 0 Explorer 0 Win Type - Total 105 Types 71/6/8/10/5/1/4 Lore% 97 Gallery% 95 Achievement% 80 Wizard Run 0 Options --------- ASCII 0 Keyboard 0 Movement Numpad Keybinds 0 Fullscreen 2 Font 18/SmallcapsGlow Map View 76x50 Tactical HUD 1 Map Filters NONE Filters NONE Steam 1 RUN: 73c20ce4-6907-4f62-8bb5-e2832616b9db